Cogmind - Beta 10.1 @@@ ROGUE MODE // 2021.06.06 @ 01:42:59 // Winter2019/RPGLIKE Player: Farfid Result: Destroyed by G-34 Mercenary with Small Laser Performance ------------- Evolutions (1) 500 Regions Visited (4) 800 Robots Destroyed (21) 105 Value Destroyed (444) 444 Prototype IDs (7) 140 Alien Tech Used (0) 0 Bonus (98) 98 TOTAL SCORE: 2087 Bonus ------- Follower Combat Kills 98 Cogmind --------- Core Integrity 0/700 Matter 275/300 Energy 279/280 System Corruption 0% Temperature Cool (12) Movement Rolling (80) Location -9/Mines Parts ------- > --- POWER (1) -------- Heavy Ion Engine > --- PROPULSION (2) --- Wheel Wheel > --- UTILITY (3) ------ Advanced Signal Interpreter Improved Terrain Scanner > --- WEAPON (2) ------- Minigun Minigun > --- INVENTORY (1) ---- Protomatter-56 Peak State ------------ > --- POWER ------------ Heavy Ion Engine > --- PROPULSION ------- Wheel Improved Flight Unit > --- UTILITY ---------- Improved Terrain Scanner Targeting Computer High-powered Tractor Beam > --- WEAPON ----------- Minigun Minigun > --- INVENTORY -------- Protomatter [Rating: 18] Favorites ----------- Power Heavy Ion Engine Engine Heavy Ion Engine Propulsion Wheel Leg Aluminum Leg Wheel Wheel Flight Unit Improved Flight Unit Utility Improved Terrain Scanner Device Improved Terrain Scanner Processor Targeting Computer Weapon Minigun Energy Gun Medium Laser Ballistic Gun Minigun Launcher Grenade Launcher Build | -11 -10 -10 -9 -9 ------- Run | Scr Mat Min Mat Min Slots Evolved 4 | 3 . . 1 . Power . | . . . . . Propulsion 1 | 1 . . . . Utility 2 | 1 . . 1 . Weapon 1 | 1 . . . . Parts Attached 21 | 6 4 3 8 . Power 4 | 1 1 . 2 . Engine 4 | 1 1 . 2 . Core . | . . . . . Reactor . | . . . . . Propulsion 5 | 3 . . 2 . Treads . | . . . . . Leg 1 | 1 . . . . Wheel 3 | 2 . . 1 . Hover . | . . . . . Flight 1 | . . . 1 . Utility 4 | . . 2 2 . Device 2 | . . 1 1 . Storage . | . . . . . Processor 2 | . . 1 1 . Hackware . | . . . . . Protection . | . . . . . Artifact . | . . . . . Weapon 8 | 2 3 1 2 . Energy Gun 3 | 2 1 . . . Energy Cannon . | . . . . . Ballistic Gun 4 | . 2 . 2 . Ballistic Cannon . | . . . . . Launcher 1 | . . 1 . . Special Weapon . | . . . . . Impact Weapon . | . . . . . Slashing Weapon . | . . . . . Piercing Weapon . | . . . . . Special Melee Weapon . | . . . . . Unidentified Prototypes 1 | . . . 1 . Parts Lost . | . . . . . Power . | . . . . . Propulsion . | . . . . . Utility . | . . . . . Weapon . | . . . . . Highest Loss Streak . | . . . . . Average Slot Usage (%) 92 | . 69 87 99 97 Engine 12 | . 13 14 12 12 Wheel 26 | . 28 28 25 25 Device 16 | . . 7 24 22 Processor 9 | . . 8 12 12 Ballistic Gun 24 | . 19 26 23 25 Launcher 1 | . . 1 1 . Naked Turns . | . . . . . Heaviest Build 17 | 6 6 9 17 16 Greatest Support 25 | 25 25 25 25 25 Greatest Overweight (x) 1 | . . . 1 . Average Overweight (x) . | . . . . . Largest Inventory Capacity 1 | 1 1 1 1 1 Average Capacity 1 | 1 1 1 1 1 Most Carried 1 | . . 1 1 1 Average Carried . | . . . 1 1 Final Capacity 1 | 1 1 1 1 1 Final Carried 1 | . . 1 1 1 Class Distribution -------------------- 100% | Mutant Dominant Class ---------------- Mutant | -10/Materials Mutant | -10/Mines Mutant | -9/Materials Mutant | -9/Mines Resources | -11 -10 -10 -9 -9 ----------- Run | Scr Mat Min Mat Min Matter Collected 694 | 163 . 197 198 136 Remotely 334 | . . . 198 136 Salvage Created 582 | . . 117 159 306 Parts 47 | . . 8 18 21 Haulers Intercepted 2 | . . . 2 . Recyclers Shooed . | . . . . . Parts Field Recycled . | . . . . . Retrieved Matter . | . . . . . Parts Self-Destructed . | . . . . . Prevented . | . . . . . Kills | -11 -10 -10 -9 -9 ------- Run | Scr Mat Min Mat Min Combat Hostiles Destroyed 11 | . . 2 2 7 Guns 11 | . . 2 2 7 Classes Destroyed 9 | . . 2 3 4 Worker 2 | . . . 2 . Tunneler 4 | . . 2 . 2 Hauler 2 | . . . 2 . Recycler 2 | . . . . 2 Grunt 7 | . . 2 1 4 Brawler 1 | . . . . 1 Sentry 1 | . . . 1 . Demolisher 1 | . . . . 1 Assembled 1 | . . . . 1 Best Kill Streak 4 | . . 2 3 4 Combat Bots Only 3 | . . 2 1 3 Max Kills in Single Turn 2 | . . 1 2 2 Gunslinging . | . . . . . Exploded . | . . . . . Melee . | . . . . . Uniques/NPCs Destroyed . | . . . . . Combat | -11 -10 -10 -9 -9 -------- Run | Scr Mat Min Mat Min Damage Taken 1231 | . 16 84 129 1002 Core 1011 | . 16 69 102 824 Absorbed by Shields . | . . . . . Redirected to Core 747 | . . 56 89 602 Core Remaining (%) 98 | 100 . 96 . . Volleys Fired 48 | . 1 13 12 22 Largest 2 | . 2 2 2 2 Hottest 50 | . 40 40 50 50 Shots Fired 92 | . 2 22 24 44 Gun 92 | . 2 22 24 44 Cannon . | . . . . . Launcher . | . . . . . Special . | . . . . . Kinetic 92 | . 2 22 24 44 Thermal . | . . . . . Explosive . | . . . . . Electromagnetic . | . . . . . Robot Hit Streak 7 | . 1 7 5 6 Robot Miss Streak 3 | . 1 3 2 3 Penetration Max . | . . . . . Secondary Targets 1 | . . . . 1 Max Gunslinging Chain 1 | . . . . 1 Shots Hit Robots 53 | . 1 14 14 24 Core Hits 32 | . . 9 7 16 Critical Hits 1 | . . 1 . . Critical Kills 1 | . . 1 . . Critical Parts Destroyed . | . . . . . Melee Attacks . | . . . . . Impact . | . . . . . Slashing . | . . . . . Piercing . | . . . . . Sneak Attacks . | . . . . . Combat Hostiles . | . . . . . Follow-up Attacks . | . . . . . Damage Inflicted 947 | . 20 178 292 457 Guns 923 | . 20 178 292 433 Cannons . | . . . . . Explosions . | . . . . . Melee . | . . . . . Ramming 24 | . . . . 24 Kinetic 923 | . 20 178 292 433 Thermal . | . . . . . Explosive . | . . . . . Electromagnetic . | . . . . . Impact . | . . . . . Slashing . | . . . . . Piercing . | . . . . . Highest Corruption 1 | . 1 1 . . Average Corruption 1 | . 1 1 . . Corruption Purged . | . . . . . Effects 1 | . . 1 . . Message Errors 1 | . . 1 . . Overload Shots . | . . . . . Overflow Damage . | . . . . . Projectiles . | . . . . . Explosions . | . . . . . Melee . | . . . . . Knockbacks . | . . . . . Impact . | . . . . . Kinetic . | . . . . . Secondary . | . . . . . Self-Inflicted Damage 10 | . . . . 10 Shots . | . . . . . Rammed 4 | . . . . 4 Targets Rammed 4 | . . . . 4 Kicked . | . . . . . Crushed . | . . . . . Highest Temperature . | . . . . . Average Temperature . | . . . . . Received Heat Transfer 129 | . . 45 39 45 Siege Activations . | . . . . . Robots Corrupted . | . . . . . Combat Hostiles . | . . . . . Parts Fried . | . . . . . Impact Corruptions . | . . . . . Robots Melted . | . . . . . Combat Hostiles . | . . . . . Parts Melted . | . . . . . Heat Transferred . | . . . . . Parts Sabotaged . | . . . . . Parts Stolen . | . . . . . Parts Stripped . | . . . . . Power Chain Reactions . | . . . . . Missiles Intercepted . | . . . . . Alert | -11 -10 -10 -9 -9 ------- Run | Scr Mat Min Mat Min Peak Influence 271 | . 57 128 271 188 Initial 49 | . . 22 49 33 Average 97 | . 36 87 132 100 Maximum Alert Level 1 | . . . 1 . Low Security (%) 90 | 100 100 100 73 100 Level 1 9 | . . . 26 . Level 2 . | . . . . . Level 3 . | . . . . . Level 4 . | . . . . . Level 5 . | . . . . . High Security . | . . . . . Max Security . | . . . . . Squads Dispatched 4 | . . . 3 1 Investigation 1 | . . . 1 . Extermination . | . . . . . Reinforcement 3 | . . . 2 1 Assault . | . . . . . Garrison . | . . . . . Intercept . | . . . . . Construction Impeded 1 | . . . . 1 Haulers Reinforced . | . . . . . Stealth | -11 -10 -10 -9 -9 --------- Run | Scr Mat Min Mat Min Distress Signals 1 | . 1 . . . Communications Jammed . | . . . . . Distress Signals . | . . . . . Times Spotted 38 | . 2 3 8 25 Peak Tracking Total 9 | . 3 2 4 9 Tactical Retreats 3 | . . . 1 2 Traps | -11 -10 -10 -9 -9 ------- Run | Scr Mat Min Mat Min Traps Triggered 4 | . 2 . 2 . Indirectly . | . . . . . Trap Hack Attempts . | . . . . . Triggered . | . . . . . Disarmed . | . . . . . Reprogrammed . | . . . . . Reused . | . . . . . Traps Extracted . | . . . . . Installed . | . . . . . Triggered . | . . . . . Machines | -11 -10 -10 -9 -9 ---------- Run | Scr Mat Min Mat Min Machines Disabled . | . . . . . Max in Single Turn . | . . . . . Machines Sabotaged . | . . . . . Garrisons Compromised . | . . . . . Overloaded Fab Kills . | . . . . . Fab Network Shutdowns . | . . . . . Hacking | -11 -10 -10 -9 -9 --------- Run | Scr Mat Min Mat Min Machines Accessed 9 | . 2 . 5 2 Terminals 9 | . 2 . 5 2 Fabricators . | . . . . . Repair Stations . | . . . . . Recycling Units . | . . . . . Scanalyzers . | . . . . . Garrison Access . | . . . . . Total Hacks 26 | . 8 . 10 8 Successful 14 | . 4 . 7 3 Failed 12 | . 4 . 3 5 Catastrophic 3 | . 1 . . 2 Database Lockouts . | . . . . . Manual 11 | . 3 . 1 7 Terminals 26 | . 8 . 10 8 Fabricators . | . . . . . Repair Stations . | . . . . . Recycling Units . | . . . . . Scanalyzers . | . . . . . Garrison Access . | . . . . . Terminal Hacks 14 | . 4 . 7 3 Part Schematic 1 | . . . 1 . Prototype ID Bank 3 | . . . 3 . Branch Access Points 1 | . . . . 1 Unreport Threat 1 | . . . . 1 Locate Traps 3 | . 1 . 2 . Recall Investigation 1 | . . . 1 . Hauler Manifests 1 | . 1 . . . Registered Components 1 | . 1 . . . Zone Layout 2 | . 1 . . 1 Fabricator Hacks . | . . . . . Repair Station Hacks . | . . . . . Recycling Unit Hacks . | . . . . . Scanalyzer . | . . . . . Garrison Access Hacks . | . . . . . Unauthorized Hacks . | . . . . . Terminals . | . . . . . Fabricators . | . . . . . Repair Stations . | . . . . . Recycling Units . | . . . . . Scanalyzers . | . . . . . Garrison Access . | . . . . . Data Cores Recovered . | . . . . . Used . | . . . . . Hacking Detections 7 | . 2 . 4 1 Full Trace Events 2 | . 1 . 1 . Feedback Events 1 | . 1 . . . Corruption 1 | . 1 . . . Feedback Blocked . | . . . . . Robot Schematics Acquired . | . . . . . Robots Built . | . . . . . Matter . | . . . . . Time . | . . . . . Total Robot Build Rating . | . . . . . Part Schematics Acquired 1 | . . . 1 . Parts Built . | . . . . . Matter . | . . . . . Time . | . . . . . Total Part Build Rating . | . . . . . Parts Repaired . | . . . . . Time . | . . . . . Parts Recycled . | . . . . . Recycled Matter . | . . . . . Retrieved Matter . | . . . . . Retrieved Components . | . . . . . Parts Scanalyzed . | . . . . . Part Schematics Acquired . | . . . . . Parts Damaged . | . . . . . Bothacking | -11 -10 -10 -9 -9 ------------ Run | Scr Mat Min Mat Min Used RIF Installer . | . . . . . Robots Hacked . | . . . . . Non-combat . | . . . . . Combat . | . . . . . Robot Hacks Applied . | . . . . . Relay Couplers Released . | . . . . . Robots Rewired . | . . . . . Allies Hacked . | . . . . . Hacks Repelled . | . . . . . Allies | -11 -10 -10 -9 -9 -------- Run | Scr Mat Min Mat Min Total Allies 3 | . . 3 . . Largest Group 3 | . . 3 3 . Highest-Rated Group 40 | . . 40 40 . Highest-Rated Ally 16 | . . 16 16 . Total Orders . | . . . . . Ally Attacks 28 | . . 9 19 . Total Damage 266 | . . 63 203 . Kills 7 | . . 1 6 . Allies Corrupted . | . . . . . Allies Melted . | . . . . . Intel | -11 -10 -10 -9 -9 ------- Run | Scr Mat Min Mat Min Robot Analysis Total . | . . . . . Derelict Logs Recovered 2 | . . 2 . . Drone Launches . | . . . . . Drone Recoveries . | . . . . . Exploration | -11 -10 -10 -9 -9 ------------- Run | Scr Mat Min Mat Min Turns Passed 1344 | 45 137 385 454 323 Spaces Moved 1357 | 40 159 394 475 289 Core 2 | 2 . . . . Treads . | . . . . . Legs 8 | 8 . . . . Wheels 1347 | 30 159 394 475 289 Hover . | . . . . . Flight . | . . . . . Fastest Speed 50 | 50 80 80 80 80 Average Speed 80 | 86 80 80 80 80 Slowest Speed 120 | 120 80 80 90 80 Overloaded Moves . | . . . . . Propulsion Burnouts . | . . . . . Robots Hopped . | . . . . . Cave-ins Triggered . | . . . . . Exploration Rate (%) 47 | 3 44 82 41 68 Regions Visited 4 Branch Regions 2 Pre-discovered Areas . | . . . . . Known Exits Taken 1 | . . . 1 . Unknown Exits Taken 3 | 1 1 1 . . Scrap Searched 1 | . . 1 . . Spaces Dug . | . . . . . Terrain Destroyed . | . . . . . Melee . | . . . . . Projectile . | . . . . . AOE . | . . . . . Terrain Rammed . | . . . . . Walls Destroyed . | . . . . . Machines Disabled . | . . . . . Actions | -11 -10 -10 -9 -9 --------- Run | Scr Mat Min Mat Min Total 1531 | 47 165 442 530 347 Wait 71 | 1 . 27 21 22 Move 1353 | 39 158 393 474 289 Hop . | . . . . . Pick Up 2 | . . 1 . 1 Fast Attach 18 | 6 4 3 5 . Attach . | . . . . . Detach . | . . . . . Swap 3 | . . . 3 . Drop 12 | 1 2 1 7 1 Fire 48 | . 1 13 12 22 Melee . | . . . . . Ram 4 | . . . . 4 Kick . | . . . . . Crush . | . . . . . Escape Stasis . | . . . . . Rewire . | . . . . . Trap . | . . . . . Miscellaneous 20 | . . 4 8 8 Route ------- -11/Scrapyard -10/Materials (discovered 2 exits: *Mat / [*Min]) -10/Mines (discovered 2 exits: *Mat x2) -9/Materials (discovered 2 exits: Mat / *Min) -9/Mines (discovered 2 exits: *Mat x2) History --------- Turn | Location | Event 1 | -11/Scrapyard | Upgraded with Propulsion slot (x1) 1 | -11/Scrapyard | Upgraded with Utility slot (x1) 1 | -11/Scrapyard | Upgraded with Weapon slot (x1) 13 | -11/Scrapyard | Discovered new exit (range 15) 46 | -11/Scrapyard | Entered Materials 130 | -10/Materials | Discovered new exit (range 3) 165 | -10/Materials | Discovered new exit (range 8) 183 | -10/Materials | Entered Mines 251 | -10/Mines | Assisted by bots powering up and referring to "LRC-V3" 263 | -10/Mines | Met a Derelict bent on vengeance 277 | -10/Mines | Learned 4 Materials zone layouts 301 | -10/Mines | Build established: Mutant 326 | -10/Mines | Discovered new exit (range 6) 329 | -10/Mines | Joined a pair of Derelicts in attacking an 0b10 outpost 378 | -10/Mines | Discovered new exit (range 6) 568 | -10/Mines | Entered Materials 568 | -9/Materials | Accompanied by 3 allies 569 | -9/Materials | Identified exit to Materials 569 | -9/Materials | Identified exit to Mines 570 | -9/Materials | Reached level 2 573 | -9/Materials | Upgraded with Utility slot (x1) 783 | -9/Materials | Reached level 3 1022 | -9/Materials | Entered Mines 1025 | -9/Mines | Reached level 4 1056 | -9/Mines | Discovered exit to Materials (range 10) 1168 | -9/Mines | Assembled infested the area 1191 | -9/Mines | A weapon hastily lodged in a ceiling crevice suddenly fell to the ground 1283 | -9/Mines | Core integrity fell below 50% 1303 | -9/Mines | Core integrity fell below 20% 1343 | -9/Mines | Discovered exit to Materials (range 7) 1345 | -9/Mines | Destroyed by G-34 Mercenary with Small Laser Last Messages --------------- 01226_ Acquired 8 matter. 01226_ D-53 Grenadier destroyed. 01227_ U-05 Engineer builds a Wall. 01228_ The unstable cave ceiling collapses. 01236_ Used Protomatter to restore core integrity (+69, depleted) 01287_ Hpw. Tractor Beam severed. 01299_ as-55038 destroyed. 01299_ Switching to secondary target: as-76395. 01305_ Slammed into as-76395. 01319_ T-07 Excavator destroyed. 01320_ Slammed into U-05 Engineer. 01325_ T-07 Excavator destroyed. 01338_ Slammed into U-05 Engineer. 01339_ Wheel permanently disabled. 01339_ Destabilizing: Short circuit. 01340_ ALERT: Construction progress impeded, dispatching reinforcements to local area. 01341_ U-05 Engineer destroyed. 01343_ K-01 Serf collects debris. 01343_ EXIT=FOUND: MATERIALS Map ----- +----------------------------------------------------+ | ?#???????#?#??## #?# #?#?????##??? | | ?? ?? ?#??????## ### ##?#?##?????? | | #?? ?? ????#????## ## #???#???#???? | | ??#?? ???#?#?????? ##=##????????#?? | | ??#?????????????## ###%#??##??#????? | | ????#???#?#####|##??#??#?#??? | | ??? ? ????????#??#???#!######?###??? | | #???#??#?#??????????## #?????#? | | #?????#?????#??#?????###### ##???##? | | #????##?????###???#?#?????# ##?#???? | | ?#? ??#??#???###?????#?#??#=##?##?#? | | #?? ##??????????#?????##?##%######?? | | ##??#????????#?#???#????###!###??### | | ?#? ????????????##??####?## ###????? | | ### #?????????#?#????#????# #?##???? | | ?#???##????????????#??????#!#??????? | | #?#?#????????#????????#???#|#?#????? | | ###?????????????#??????#??#*#??????? | | ????????#????#?#??#??#?#??#%#?##???? | | ?#??#??????????????#??##??#=#???#??? | | #???#????????????????##?#?#=#?##???? | | ??##???#???#???#??#### ??# ##?????# | | ?????????????##?#??## #?# ####???? | | ????????????????#?##u